[Event "Marmaris Karya IM 2018"]
[Site "Marmaris"]
[Date "2018.06.29"]
[Round "7.3"]
[White "Tanriverdi, Enes"]
[Black "Bivol, Alina"]
[Result "0-1"]
[ECO "D02"]
[WhiteElo "2281"]
[BlackElo "2365"]
[Annotator "ChessBase"]
[PlyCount "108"]
[EventDate "2018.06.25"]
[EventCountry "TUR"]
[SourceTitle "playchess.com"]
[Source "ChessBase"]
[SourceQuality "1"]
[TimeControl "5400+30"]

1. d4 {[%emt 0:04:30]} Nc6 {[%emt 0:00:30]} 2. Nf3 {[%emt 0:02:30]} d5 {[%emt 0:00:30]} 3. Bf4 {[%emt 0:04:30]} Nf6 {[%emt 0:00:30]} 4. e3 {[%emt 0:00:30]} g6 {[%emt 0:03:30]} 5. h3 {[%emt 0:00:30]} Bg7 {[%emt 0:01:30]} 6. Nbd2 {[%emt 0:04:30]} O-O {[%emt 0:02:30]} 7. c3 {[%emt 0:00:30]} Bf5 {[%emt 0:05:30]} 8. Bb5 {[%emt 0:00:30]} Nb8 {[%emt 0:06:30]} 9. O-O {[%emt 0:02:30]} Ne4 {[%emt 0:05:30]} 10. Be2 {[%emt 0:01:30]} c6 {[%emt 0:03:30]} 11. a4 {[%emt 0:00:30]} Nd7 {[%emt 0:02:30]} 12. a5 {[%emt 0:01:30]} Nxd2 {[%emt 0:00:30]} 13. Nxd2 {[%emt 0:01:30]} e5 {[%emt 0:02:30]} 14. dxe5 {[%emt 0:14:30]} Nxe5 {[%emt 0:01:30]} 15. Nf3 {[%emt 0:03:30]} Nxf3+ {[%emt 0:01:30]} 16. Bxf3 {[%emt 0:00:30]} Qe7 {[%emt 0:00:00]} 17. Qb3 {[%emt 0:01:30]} Rfd8 {[%emt 0:02:00]} 18. Rfd1 {[%emt 0:00:30]} Rac8 {[%emt 0:01:30]} 19. Qa3 {[%emt 0:07:30]} Bf8 {[%emt 0:04:30]} 20. Qxe7 {[%emt 0:03:30]} Bxe7 {[%emt 0:00:00]} 21. Rd2 {[%emt 0:00:30]} Kg7 {[%emt 0:02:00]} 22. a6 {[%emt 0:02:30]} b5 {[%emt 0:05:30]} 23. Bg4 {[%emt 0:00:30]} Bxg4 {[%emt 0:02:30]} 24. hxg4 {[%emt 0:00:30]} Kf6 {[%emt 0:03:30]} 25. Kf1 {[%emt 0:02:30]} g5 {[%emt 0:05:30]} 26. Bg3 {[%emt 0:00:30]} Bc5 {[%emt 0:00:00]} 27. Rad1 {[%emt 0:02:30]} Re8 {[%emt 0:01:00]} 28. b4 {[%emt 0:21:54]} Bb6 {[%emt 0:03:30]} 29. Rd3 {[%emt 0:00:14]} Re4 {[%emt 0:05:30]} 30. f3 {[%emt 0:00:10]} Rxe3 {[%emt 0:01:30]} 31. Rxe3 {[%emt 0:00:19]} Bxe3 {[%emt 0:00:30]} 32. Bf2 {[%emt 0:02:59]} Bxf2 {[%emt 0:02:30]} 33. Kxf2 {[%emt 0:00:04]} Re8 {[%emt 0:00:30]} 34. Rh1 {[%emt 0:00:45]} Kg6 {[%emt 0:01:30]} 35. g3 {[%emt 0:01:43]} f6 {[%emt 0:00:30]} 36. Rd1 {[%emt 0:00:24]} Re7 {[%emt 0:00:30]} 37. Rh1 {[%emt 0:00:39]} h6 {[%emt 0:04:30]} 38. Rd1 {[%emt 0:02:04]} f5 {[%emt 0:01:30]} 39. gxf5+ {[%emt 0:00:09]} Kxf5 {[%emt 0:00:00]} 40. g4+ {[%emt 0:00:37]} Kg6 {[%emt 0:00:00]} 41. Rh1 {[%emt 0:00:19]} Re6 {[%emt 0:00:30]} 42. Rd1 {[%emt 0:02:45]} Kf6 {[%emt 0:00:30]} 43. Rd3 {[%emt 0:00:22]} Ke7 {[%emt 0:01:30]} 44. Kg3 {[%emt 0:00:39]} Kd6 {[%emt 0:01:01]} 45. f4 {[%emt 0:00:00]} gxf4+ {[%emt 0:00:33]} 46. Kxf4 {[%emt 0:00:12]} Rf6+ {[%emt 0:00:24]} 47. Kg3 {[%emt 0:01:32]} c5 {[%emt 0:00:14]} 48. Re3 {[%emt 0:00:39]} cxb4 {[%emt 0:00:31]} 49. cxb4 {[%emt 0:00:02]} d4 {[%emt 0:00:17]} 50. Re8 {[%emt 0:00:03]} Kd5 {[%emt 0:00:30]} 51. Rc8 {[%emt 0:00:04]} d3 {[%emt 0:01:36]} 52. Rc5+ {[%emt 0:00:01]} Kd4 {[%emt 0:00:15]} 53. Rxb5 {[%emt 0:00:04]} d2 {[%emt 0:00:14]} 54. Rb8 {[%emt 0:00:06]} Rd6 {[%emt 0:00:10]} 0-1

[Event "Marmaris Karya IM 2018"]
[Site "Marmaris"]
[Date "2018.06.29"]
[Round "7.4"]
[White "Arda, Cagil Irmak"]
[Black "Darban, Morteza"]
[Result "0-1"]
[ECO "B40"]
[WhiteElo "2257"]
[BlackElo "2312"]
[Annotator "ChessBase"]
[PlyCount "112"]
[EventDate "2018.06.25"]
[EventCountry "TUR"]
[SourceTitle "playchess.com"]
[Source "ChessBase"]
[SourceQuality "1"]
[TimeControl "5400+30"]

1. e4 {[%emt 0:00:30]} c5 {[%emt 0:03:30]} 2. Nf3 {[%emt 0:00:00]} e6 {[%emt 0:00:00]} 3. c4 {[%emt 0:00:00]} Nc6 {[%emt 0:00:00]} 4. Nc3 {[%emt 0:00:30]} Qb6 {[%emt 0:00:30]} 5. d3 {[%emt 0:01:30]} a6 {[%emt 0:05:30]} 6. Rb1 {[%emt 0:02:30]} Nf6 {[%emt 0:02:30]} 7. h3 {[%emt 0:07:30]} d6 {[%emt 0:17:30]} 8. Be3 {[%emt 0:00:30]} Qa5 {[%emt 0:00:30]} 9. Qa4 {[%emt 0:10:30]} Qc7 {[%emt 0:18:30]} 10. d4 {[%emt 0:02:30]} cxd4 {[%emt 0:00:00]} 11. Nxd4 {[%emt 0:00:30]} Be7 {[%emt 0:01:00]} 12. Be2 {[%emt 0:08:30]} O-O {[%emt 0:00:30]} 13. O-O {[%emt 0:00:30]} Nxd4 {[%emt 0:04:30]} 14. Bxd4 {[%emt 0:00:30]} b6 {[%emt 0:00:30]} 15. Qd1 {[%emt 0:04:30]} Bb7 {[%emt 0:00:30]} 16. Qd3 {[%emt 0:02:30]} Rac8 {[%emt 0:05:30]} 17. f4 {[%emt 0:08:30]} Nd7 {[%emt 0:12:30]} 18. Rfd1 {[%emt 0:05:30]} Rfd8 {[%emt 0:05:56]} 19. Rbc1 {[%emt 0:03:30]} Bf6 {[%emt 0:00:41]} 20. Bf2 {[%emt 0:01:30]} Nc5 {[%emt 0:00:29]} 21. Bxc5 {[%emt 0:07:30]} dxc5 {[%emt 0:01:14]} 22. Qf3 {[%emt 0:00:30]} Rxd1+ {[%emt 0:00:32]} 23. Rxd1 {[%emt 0:01:30]} Rd8 {[%emt 0:00:02]} 24. Rxd8+ {[%emt 0:00:30]} Qxd8 {[%emt 0:00:01]} 25. Qd3 {[%emt 0:00:30]} Bd4+ {[%emt 0:00:57]} 26. Kh2 {[%emt 0:01:30]} h6 {[%emt 0:05:22]} 27. g3 {[%emt 0:04:30]} Qd7 {[%emt 0:01:42]} 28. Kg2 {[%emt 0:01:30]} Bc6 {[%emt 0:03:28]} 29. Bf3 {[%emt 0:04:30]} b5 {[%emt 0:00:57]} 30. b3 {[%emt 0:03:00]} f6 {[%emt 0:02:19]} 31. Ne2 {[%emt 0:05:10]} e5 {[%emt 0:00:06]} 32. Nxd4 {[%emt 0:03:59]} Qxd4 {[%emt 0:00:33]} 33. Qxd4 {[%emt 0:00:32]} cxd4 {[%emt 0:00:46]} 34. cxb5 {[%emt 0:02:59]} Bxb5 {[%emt 0:01:40]} 35. fxe5 {[%emt 0:01:30]} fxe5 {[%emt 0:00:03]} 36. b4 {[%emt 0:01:15]} Kf7 {[%emt 0:04:16]} 37. Kf2 {[%emt 0:00:12]} Ke7 {[%emt 0:00:23]} 38. Ke1 {[%emt 0:01:16]} Kd6 {[%emt 0:00:59]} 39. Kd2 {[%emt 0:00:41]} a5 {[%emt 0:01:09]} 40. a3 {[%emt 0:02:20]} axb4 {[%emt 0:00:22]} 41. axb4 {[%emt 0:00:03]} Bf1 {[%emt 0:01:58]} 42. h4 {[%emt 0:01:20]} Kc6 {[%emt 0:00:04]} 43. Kc2 {[%emt 0:00:17]} Kb5 {[%emt 0:00:45]} 44. Kb3 {[%emt 0:00:07]} Bd3 {[%emt 0:01:02]} 45. Bg2 {[%emt 0:01:16]} g5 {[%emt 0:00:27]} 46. hxg5 {[%emt 0:00:44]} hxg5 {[%emt 0:00:02]} 47. Bf3 {[%emt 0:00:33]} Bc4+ {[%emt 0:00:06]} 48. Ka3 {[%emt 0:00:06]} Bf1 {[%emt 0:00:05]} 49. Kb3 {[%emt 0:00:56]} Bd3 {[%emt 0:00:04]} 50. Ka3 {[%emt 0:00:37]} Kc4 {[%emt 0:02:12]} 51. Ka4 {[%emt 0:00:41]} Bc2+ {[%emt 0:00:04]} 52. Ka5 {[%emt 0:00:02]} d3 {[%emt 0:00:06]} 53. b5 {[%emt 0:00:03]} d2 {[%emt 0:00:05]} 54. b6 {[%emt 0:00:05]} Bxe4 {[%emt 0:00:03]} 55. Bxe4 {[%emt 0:01:14]} d1=Q {[%emt 0:00:09]} 56. b7 {[%emt 0:00:06]} Kc5 {[%emt 0:00:39]} 0-1

[Event "Marmaris Karya IM 2018"]
[Site "Marmaris"]
[Date "2018.06.29"]
[Round "8.1"]
[White "Bagaturov, Giorgi"]
[Black "Can, Isik"]
[Result "1/2-1/2"]
[ECO "E12"]
[WhiteElo "2397"]
[BlackElo "2396"]
[Annotator "ChessBase"]
[PlyCount "68"]
[EventDate "2018.06.25"]
[EventCountry "TUR"]
[SourceTitle "playchess.com"]
[Source "ChessBase"]
[SourceQuality "1"]
[TimeControl "5400+30"]

1. d4 {[%emt 0:00:30]} Nf6 {[%emt 0:00:30]} 2. c4 {[%emt 0:00:00]} e6 {[%emt 0:00:00]} 3. Nf3 {[%emt 0:01:00]} b6 {[%emt 0:00:00]} 4. a3 {[%emt 0:00:00]} Bb7 {[%emt 0:00:30]} 5. Nc3 {[%emt 0:00:00]} d5 {[%emt 0:00:00]} 6. cxd5 {[%emt 0:01:30]} Nxd5 {[%emt 0:00:00]} 7. Qc2 {[%emt 0:00:00]} Nd7 {[%emt 0:02:30]} 8. Nxd5 {[%emt 0:05:00]} exd5 {[%emt 0:00:30]} 9. Bg5 {[%emt 0:00:30]} Qc8 {[%emt 0:02:30]} 10. g3 {[%emt 0:06:30]} Bd6 {[%emt 0:08:30]} 11. Bh3 {[%emt 0:01:30]} O-O {[%emt 0:10:30]} 12. O-O {[%emt 0:06:30]} Re8 {[%emt 0:12:30]} 13. Rac1 {[%emt 0:03:30]} c6 {[%emt 0:09:30]} 14. Qf5 {[%emt 0:27:30]} Nf8 {[%emt 0:02:30]} 15. Qxc8 {[%emt 0:00:00]} Bxc8 {[%emt 0:00:30]} 16. Bxc8 {[%emt 0:00:00]} Raxc8 {[%emt 0:00:00]} 17. Rc2 {[%emt 0:00:30]} Ne6 {[%emt 0:10:00]} 18. Rfc1 {[%emt 0:04:30]} c5 {[%emt 0:00:30]} 19. dxc5 {[%emt 0:02:30]} bxc5 {[%emt 0:04:30]} 20. b4 {[%emt 0:07:30]} a5 {[%emt 0:06:30]} 21. Be3 {[%emt 0:08:30]} axb4 {[%emt 0:03:30]} 22. axb4 {[%emt 0:00:30]} c4 {[%emt 0:02:30]} 23. Rd1 {[%emt 0:00:30]} Nc7 {[%emt 0:04:46]} 24. Bb6 {[%emt 0:06:13]} Na6 {[%emt 0:03:16]} 25. Ba5 {[%emt 0:01:24]} Bxb4 {[%emt 0:01:31]} 26. Rxd5 {[%emt 0:00:20]} c3 {[%emt 0:02:05]} 27. Ne5 {[%emt 0:09:15]} Bxa5 {[%emt 0:06:23]} 28. Rxa5 {[%emt 0:00:05]} Nb4 {[%emt 0:02:23]} 29. Rc1 {[%emt 0:00:07]} Red8 {[%emt 0:03:52]} 30. Ra4 {[%emt 0:04:31]} c2 {[%emt 0:02:09]} 31. Nd3 {[%emt 0:00:27]} Nxd3 {[%emt 0:00:26]} 32. exd3 {[%emt 0:00:05]} Rc3 {[%emt 0:00:06]} 33. Ra2 {[%emt 0:00:23]} Rdc8 {[%emt 0:00:15]} 34. Kf1 {[%emt 0:00:09]} Rxd3 {[%emt 0:00:10]} 1/2-1/2

[Event "Marmaris Karya IM 2018"]
[Site "Marmaris"]
[Date "2018.06.29"]
[Round "8.2"]
[White "Bivol, Alina"]
[Black "Dedebas, Emre Emin"]
[Result "1/2-1/2"]
[ECO "A07"]
[WhiteElo "2365"]
[BlackElo "2336"]
[Annotator "ChessBase"]
[PlyCount "39"]
[EventDate "2018.06.25"]
[EventCountry "TUR"]
[SourceTitle "playchess.com"]
[Source "ChessBase"]
[SourceQuality "1"]
[TimeControl "5400+30"]

1. Nf3 {[%emt 0:00:30]} Nf6 {[%emt 0:00:30]} 2. g3 {[%emt 0:00:00]} d5 {[%emt 0:00:00]} 3. Bg2 {[%emt 0:00:00]} c6 {[%emt 0:00:00]} 4. O-O {[%emt 0:00:00]} Bg4 {[%emt 0:00:00]} 5. d3 {[%emt 0:00:00]} Nbd7 {[%emt 0:00:00]} 6. h3 {[%emt 0:00:30]} Bh5 {[%emt 0:00:00]} 7. Qe1 {[%emt 0:00:00]} e5 {[%emt 0:00:00]} 8. e4 {[%emt 0:00:00]} dxe4 {[%emt 0:00:00]} 9. dxe4 {[%emt 0:00:00]} Bc5 {[%emt 0:00:00]} 10. a4 {[%emt 0:00:00]} a5 {[%emt 0:00:00]} 11. Na3 {[%emt 0:00:00]} O-O {[%emt 0:00:00]} 12. Nc4 {[%emt 0:00:00]} Re8 {[%emt 0:00:30]} 13. Nh4 {[%emt 0:01:30]} Bg6 {[%emt 0:00:00]} 14. Nf5 {[%emt 0:00:30]} Qc7 {[%emt 0:00:00]} 15. c3 {[%emt 0:00:00]} Nb6 {[%emt 0:00:30]} 16. Nce3 {[%emt 0:00:00]} Nbd7 {[%emt 0:00:00]} 17. Nc4 {[%emt 0:00:30]} Nb6 {[%emt 0:00:00]} 18. Nce3 {[%emt 0:00:00]} Nbd7 {[%emt 0:00:00]} 19. Nc4 {[%emt 0:00:00]} Nb6 {[%emt 0:00:00]} 20. Nce3 {[%emt 0:00:30]} 1/2-1/2

[Event "Marmaris Karya IM 2018"]
[Site "Marmaris"]
[Date "2018.06.28"]
[Round "8.3"]
[White "Darban, Morteza"]
[Black "Tanriverdi, Enes"]
[Result "1/2-1/2"]
[ECO "B22"]
[WhiteElo "2312"]
[BlackElo "2281"]
[Annotator "NA"]
[PlyCount "125"]
[EventDate "2018.06.25"]
[EventCountry "TUR"]
[SourceTitle "playchess.com"]
[Source "ChessBase"]
[SourceQuality "1"]
[TimeControl "5400+30"]

1. e4 {[%emt 0:01:30]} c5 {[%emt 0:00:30]} 2. Nf3 {[%emt 0:00:30]} e6 {[%emt 0:00:00]} 3. c3 {[%emt 0:00:30]} d5 {[%emt 0:00:00]} 4. exd5 {[%emt 0:00:30]} Qxd5 {[%emt 0:00:00]} 5. d4 {[%emt 0:00:00]} Nf6 {[%emt 0:00:00]} 6. Be3 {[%emt 0:01:00] LiveBook: 955 Games} cxd4 {[%emt 0:00:00]} 7. cxd4 {[%emt 0:00:00]} Bb4+ {[%emt 0:00:00]} 8. Nc3 {[%emt 0:00:00] B22: Sicilian: 2 c3} O-O {[%emt 0:00:30]} 9. Bd3 {[%emt 0:02:30]} (9. Be2 Nbd7 10. O-O Bxc3 11. bxc3 b6 12. Nd2 Qd6 13. Bf3 Rb8 14. c4 Bb7 15. Bxb7 Rxb7 {1-0 (36) Finkel,A (2511)-Navara,D (2725) Tallinn 2016}) 9... b6 {[%emt 0:00:00]} 10. O-O {[%emt 0:03:30]} Bxc3 {[%emt 0:01:00]} 11. bxc3 {[%emt 0:00:30]} Ba6 {[%emt 0:00:00]} 12. Bxa6 {[%emt 0:08:30]} Nxa6 {[%emt 0:00:00]} 13. Qa4 {[%emt 0:00:00]} Qb7 {[%emt 0:02:30] [#]} 14. Rfd1 $146 {[%emt 0:03:00]} ({Predecessor:} 14. c4 Nb8 15. Rfd1 Nbd7 {½-½ (15) Vajda,L (2581)-Banusz,T (2621) Zalakaros 2016}) 14... Nb8 {[%emt 0:01:30]} 15. Qb3 {[%emt 0:02:30]} Nbd7 {[%emt 0:13:30]} 16. a4 $11 {[%emt 0:02:30]} Ne4 {[%emt 0:00:30]} 17. c4 {[%emt 0:00:00]} Rac8 {[%emt 0:15:30]} 18. Bf4 {[%emt 0:07:00]} Ndf6 {[%emt 0:17:30]} 19. h3 {[%emt 0:00:30]} Rfd8 {[%emt 0:01:30]} 20. a5 {[%emt 0:01:30]} h6 {[%emt 0:07:30]} 21. Rdc1 {[%emt 0:03:30]} g5 {[%emt 0:01:30]} 22. Be3 {[%emt 0:04:30]} Nd6 {[%emt 0:01:30]} 23. c5 {[%emt 0:06:30]} Nf5 {[%emt 0:02:30]} 24. axb6 {[%emt 0:08:30]} axb6 {[%emt 0:00:00]} 25. Qxb6 {[%emt 0:00:00]} Qxb6 {[%emt 0:01:00]} 26. cxb6 {[%emt 0:00:00]} Rxc1+ {[%emt 0:00:30]} 27. Rxc1 {[%emt 0:08:30]} Rb8 {[%emt 0:00:00]} 28. Rb1 {[%emt 0:01:30]} Nd5 {[%emt 0:00:00]} 29. b7 {[%emt 0:00:30]} Nd6 {[%emt 0:00:30]} 30. h4 {[%emt 0:00:30]} f6 {[%emt 0:00:30]} 31. hxg5 {[%emt 0:00:30]} hxg5 {[%emt 0:00:30]} 32. Bxg5 {[%emt 0:00:30]} fxg5 {[%emt 0:00:30]} 33. Nxg5 {[%emt 0:00:30]} Rxb7 {[%emt 0:00:30]} 34. Rxb7 {[%emt 0:00:00]} Nxb7 {[%emt 0:00:00]} 35. Nxe6 {[%emt 0:00:00]} Nd6 {[%emt 0:00:00]} 36. Kf1 {[%emt 0:05:30]} Kf7 {[%emt 0:00:30]} 37. Nd8+ {[%emt 0:02:30]} Ke7 {[%emt 0:00:30]} 38. Nc6+ {[%emt 0:00:00]} Kd7 {[%emt 0:00:30]} 39. Na5 {[%emt 0:03:00]} Ke6 {[%emt 0:00:30]} 40. Ke2 {[%emt 0:00:30]} Ne7 {[%emt 0:05:30]} 41. g4 {[%emt 0:06:30]} Kd5 {[%emt 0:00:30]} 42. Ke3 {[%emt 0:01:30]} Nef5+ {[%emt 0:00:30]} 43. gxf5 {[%emt 0:00:00]} Nxf5+ {[%emt 0:00:30]} 44. Kf4 {[%emt 0:01:04]} Nxd4 {[%emt 0:00:00]} 45. Nb7 {[%emt 0:00:26]} Ne6+ {[%emt 0:00:00]} 46. Kf5 {[%emt 0:00:30]} Ng7+ {[%emt 0:00:30]} 47. Kg4 {[%emt 0:00:33]} Ne6 {[%emt 0:00:30]} 48. Na5 {[%emt 0:00:32]} Ke5 {[%emt 0:00:30]} 49. Nc6+ {[%emt 0:00:25]} Kf6 {[%emt 0:00:00]} 50. Nb4 {[%emt 0:00:30]} Ke5 {[%emt 0:00:00]} 51. Nc2 {[%emt 0:01:39]} Kf6 {[%emt 0:01:30]} 52. Ne3 {[%emt 0:00:31]} Ke5 {[%emt 0:00:30]} 53. Nf1 {[%emt 0:00:10]} Kf6 {[%emt 0:00:00]} 54. Ng3 {[%emt 0:00:05]} Ke5 {[%emt 0:00:00]} 55. Nh5 {[%emt 0:00:08]} Ke4 {[%emt 0:00:30]} 56. Nf6+ {[%emt 0:00:30]} Ke5 {[%emt 0:00:00]} 57. Nh7 {[%emt 0:00:27]} Ke4 {[%emt 0:00:00]} 58. f3+ {[%emt 0:00:30]} Ke5 {[%emt 0:00:30]} 59. Ng5 {[%emt 0:00:30]} Ng7 {[%emt 0:00:30]} 60. Ne4 {[%emt 0:05:18]} Nh5 {[%emt 0:00:00]} 61. Kxh5 {[%emt 0:00:07]} Kf5 {[%emt 0:00:00]} 62. Kh6 {[%emt 0:00:00]} Kf4 {[%emt 0:00:00]} 63. Kg6 {[%emt 0:00:11]} 1/2-1/2

[Event "Marmaris Karya IM 2018"]
[Site "Marmaris"]
[Date "2018.06.30"]
[Round "9.1"]
[White "Can, Isik"]
[Black "Bivol, Alina"]
[Result "0-1"]
[ECO "C10"]
[WhiteElo "2396"]
[BlackElo "2365"]
[Annotator "ChessBase"]
[PlyCount "92"]
[EventDate "2018.06.25"]
[EventCountry "TUR"]
[SourceTitle "playchess.com"]
[Source "ChessBase"]
[SourceQuality "1"]
[TimeControl "5400+30"]

1. e4 {[%emt 0:02:30]} e6 {[%emt 0:01:00]} 2. d4 {[%emt 0:00:30]} d5 {[%emt 0:00:00]} 3. Nc3 {[%emt 0:00:00]} Nc6 {[%emt 0:00:00]} 4. Nf3 {[%emt 0:00:00]} Nf6 {[%emt 0:00:00]} 5. Ne2 {[%emt 0:00:00]} Nxe4 {[%emt 0:00:00]} 6. Ng3 {[%emt 0:00:00]} f5 {[%emt 0:00:00]} 7. Nh5 {[%emt 0:02:30]} g6 {[%emt 0:00:00]} 8. Nf4 {[%emt 0:00:00]} Be7 {[%emt 0:00:00]} 9. h4 {[%emt 0:02:00]} O-O {[%emt 0:05:00]} 10. c3 {[%emt 0:11:30]} a5 {[%emt 0:04:30]} 11. Bd3 {[%emt 0:05:30]} Nb8 {[%emt 0:05:30]} 12. g4 {[%emt 0:29:30]} fxg4 {[%emt 0:10:30]} 13. Bxe4 {[%emt 0:09:30]} dxe4 {[%emt 0:00:30]} 14. Ng5 {[%emt 0:00:00]} Bxg5 {[%emt 0:01:30]} 15. hxg5 {[%emt 0:00:00]} Qe7 {[%emt 0:06:30]} 16. Be3 {[%emt 0:05:30]} c5 {[%emt 0:08:30]} 17. Qxg4 {[%emt 0:08:30]} cxd4 {[%emt 0:01:30]} 18. cxd4 {[%emt 0:00:30]} Nc6 {[%emt 0:05:30]} 19. O-O-O {[%emt 0:00:30]} Nb4 {[%emt 0:00:30]} 20. Kb1 {[%emt 0:00:00]} Nd5 {[%emt 0:06:30]} 21. Ne2 {[%emt 0:05:06]} a4 {[%emt 0:07:30]} 22. Rc1 {[%emt 0:07:29]} Bd7 {[%emt 0:03:30]} 23. Ng3 {[%emt 0:03:01]} Bb5 {[%emt 0:00:30]} 24. Nxe4 {[%emt 0:00:35]} Bd3+ {[%emt 0:00:00]} 25. Ka1 {[%emt 0:00:00]} Bxe4 {[%emt 0:00:00]} 26. Qxe4 {[%emt 0:00:02]} a3 {[%emt 0:00:30]} 27. b3 {[%emt 0:00:34]} Rac8 {[%emt 0:03:30]} 28. Qd3 {[%emt 0:04:02]} Nb4 {[%emt 0:03:30]} 29. Qd2 {[%emt 0:00:53]} Nd5 {[%emt 0:02:30]} 30. Qd3 {[%emt 0:01:53]} Nb4 {[%emt 0:01:30]} 31. Qe4 {[%emt 0:01:43]} Nd5 {[%emt 0:00:00]} 32. Rc4 {[%emt 0:00:55]} Nb6 {[%emt 0:11:38]} 33. Rcc1 {[%emt 0:01:06]} Nd5 {[%emt 0:00:06]} 34. Rc4 {[%emt 0:00:28]} Nb6 {[%emt 0:00:14]} 35. Rc5 {[%emt 0:00:07]} Rxc5 {[%emt 0:00:00]} 36. dxc5 {[%emt 0:00:33]} Nd5 {[%emt 0:00:13]} 37. Qc4 {[%emt 0:00:56]} Qc7 {[%emt 0:00:29]} 38. Qe4 {[%emt 0:00:15]} Nxe3 {[%emt 0:05:21]} 39. Qxe3 {[%emt 0:00:42]} Rf3 {[%emt 0:00:52]} 40. Qd4 {[%emt 0:00:36]} Rd3 {[%emt 0:00:27]} 41. Qf4 {[%emt 0:00:27]} Qxc5 {[%emt 0:04:13]} 42. Kb1 {[%emt 0:00:00]} Qd5 {[%emt 0:01:22]} 43. Qc1 {[%emt 0:00:02]} Qe4 {[%emt 0:00:29]} 44. Ka1 {[%emt 0:01:12]} Qe5+ {[%emt 0:01:12]} 45. Kb1 {[%emt 0:00:01]} Rc3 {[%emt 0:01:52]} 46. Qd1 {[%emt 0:00:24]} Rc8 {[%emt 0:00:14]} 0-1

[Event "Marmaris Karya IM 2018"]
[Site "Marmaris"]
[Date "2018.06.29"]
[Round "9.1"]
[White "Darban, Morteza"]
[Black "Can, Isik"]
[Result "1/2-1/2"]
[ECO "C68"]
[WhiteElo "2312"]
[BlackElo "2396"]
[Annotator "NA"]
[PlyCount "28"]
[EventDate "2018.06.25"]
[EventCountry "TUR"]
[SourceTitle "playchess.com"]
[Source "ChessBase"]
[SourceQuality "1"]
[TimeControl "5400+30"]

{[%evp 13,28,-11,32767,32767,0,0,0,0,0,32767,32767,32767,32767,32767,32767,0,0]} 1. e4 {[%emt 0:00:30]} e5 {[%emt 0:01:00]} 2. Nf3 {[%emt 0:00:30]} Nc6 {[%emt 0:00:30]} 3. Bb5 {[%emt 0:02:30]} a6 {[%emt 0:00:00]} 4. Bxc6 {[%emt 0:01:30]} dxc6 {[%emt 0:02:00]} 5. O-O {[%emt 0:00:00]} Bg4 {[%emt 0:00:30]} 6. h3 {[%emt 0:02:00]} h5 {[%emt 0:01:30]} 7. c3 {[%emt 0:01:30]} ({But not} 7. hxg4 hxg4 8. g3 gxf3 $17) 7... Qd3 {[%emt 0:00:30]} 8. hxg4 {[%emt 0:02:30]} hxg4 {[%emt 0:01:30]} 9. Nxe5 {[%emt 0:01:30]} Bd6 $1 {[%emt 0:00:00]} 10. Nxd3 {[%emt 0:01:30]} Bh2+ {[%emt 0:00:00] LiveBook: 353 Games} 11. Kh1 {[%emt 0:00:00]} Bg3+ {[%emt 0:00:00]} 12. Kg1 {[%emt 0:00:00]} Bh2+ {[%emt 0:00:00]} 13. Kh1 {[%emt 0:00:00]} Be5+ {[%emt 0:00:30]} 14. Kg1 {[%emt 0:00:00]} Bh2+ $11 {[%emt 0:00:00]} 1/2-1/2

[Event "Marmaris Karya IM 2018"]
[Site "Marmaris"]
[Date "2018.06.29"]
[Round "9.3"]
[White "Benidze, Davit"]
[Black "Tanriverdi, Enes"]
[Result "1/2-1/2"]
[ECO "C68"]
[WhiteElo "2487"]
[BlackElo "2281"]
[Annotator "ChessBase"]
[PlyCount "27"]
[EventDate "2018.06.25"]
[EventCountry "TUR"]
[SourceTitle "playchess.com"]
[Source "ChessBase"]
[SourceQuality "1"]
[TimeControl "5400+30"]

1. e4 {[%emt 0:00:00]} e5 {[%emt 0:00:00]} 2. Nf3 {[%emt 0:00:00]} Nc6 {[%emt 0:00:30]} 3. Bb5 {[%emt 0:00:30]} a6 {[%emt 0:00:30]} 4. Bxc6 {[%emt 0:00:30]} dxc6 {[%emt 0:00:30]} 5. O-O {[%emt 0:00:30]} Bg4 {[%emt 0:00:30]} 6. c3 {[%emt 0:00:30]} Qd3 {[%emt 0:00:30]} 7. h3 {[%emt 0:00:30]} h5 {[%emt 0:00:30]} 8. hxg4 {[%emt 0:00:30]} hxg4 {[%emt 0:00:30]} 9. Nxe5 {[%emt 0:00:30]} Bd6 {[%emt 0:00:30]} 10. Nxd3 {[%emt 0:00:30]} Bh2+ {[%emt 0:00:30]} 11. Kh1 {[%emt 0:00:30]} Bd6+ {[%emt 0:00:30]} 12. Kg1 {[%emt 0:00:30]} Bh2+ {[%emt 0:00:30]} 13. Kh1 {[%emt 0:00:30]} Bd6+ {[%emt 0:00:30]} 14. Kg1 {[%emt 0:00:30]} 1/2-1/2

[Event "Marmaris Karya IM 2018"]
[Site "Marmaris"]
[Date "2018.06.30"]
[Round "9.3"]
[White "Tanriverdi, Enes"]
[Black "Korneev, Oleg"]
[Result "0-1"]
[ECO "D10"]
[WhiteElo "2281"]
[BlackElo "2517"]
[Annotator "ChessBase"]
[PlyCount "52"]
[EventDate "2018.06.25"]
[EventCountry "TUR"]
[SourceTitle "playchess.com"]
[Source "ChessBase"]
[SourceQuality "1"]
[TimeControl "5400+30"]

1. d4 {[%emt 0:04:30]} d5 {[%emt 0:04:00]} 2. c4 {[%emt 0:00:00]} c6 {[%emt 0:00:00]} 3. e3 {[%emt 0:03:00]} Bf5 {[%emt 0:00:00]} 4. cxd5 {[%emt 0:00:30]} cxd5 {[%emt 0:00:30]} 5. Qb3 {[%emt 0:00:30]} Qc7 {[%emt 0:01:30]} 6. Nc3 {[%emt 0:00:30]} e6 {[%emt 0:00:30]} 7. e4 {[%emt 0:00:30]} Bxe4 {[%emt 0:00:30]} 8. Bf4 {[%emt 0:00:00]} Qb6 {[%emt 0:09:30]} 9. Nb5 {[%emt 0:00:00]} Na6 {[%emt 0:11:30]} 10. f3 {[%emt 0:00:30]} Bb4+ {[%emt 0:03:30]} 11. Kd1 {[%emt 0:00:30]} Nf6 {[%emt 0:12:30]} 12. fxe4 {[%emt 0:09:30]} Nxe4 {[%emt 0:00:30]} 13. Nh3 {[%emt 0:00:30]} O-O {[%emt 0:00:00]} 14. Bd3 {[%emt 0:00:30]} Rac8 {[%emt 0:10:00]} 15. a4 {[%emt 0:35:30]} Ba5 {[%emt 0:15:30]} 16. Ke2 {[%emt 0:21:45]} Nb4 {[%emt 0:04:30]} 17. Rac1 {[%emt 0:01:19]} a6 {[%emt 0:07:51]} 18. Bxe4 {[%emt 0:01:53]} dxe4 {[%emt 0:03:36]} 19. Bc7 {[%emt 0:00:53]} Rxc7 {[%emt 0:00:02]} 20. Nxc7 {[%emt 0:00:08]} Qd6 {[%emt 0:08:32]} 21. Qg3 {[%emt 0:13:12]} Qxd4 {[%emt 0:00:32]} 22. Qc3 {[%emt 0:00:08]} Qd6 {[%emt 0:01:21]} 23. Qg3 {[%emt 0:04:09]} e5 {[%emt 0:02:05]} 24. Qb3 {[%emt 0:00:29]} Nc6 {[%emt 0:01:43]} 25. Qxb7 {[%emt 0:00:27]} Qd2+ {[%emt 0:00:05]} 26. Kf1 {[%emt 0:00:10]} Qxc1+ {[%emt 0:00:36]} 0-1